[Event "Early-Titled-Tuesday-Blitz-March-26-2024"]
[Site "Chess.com"]
[Date "2024.03.26"]
[Round "8"]
[White "CURRUTACO59"]
[Black "SaiAgni_98"]
[Result "0-1"]
[WhiteElo "2278"]
[BlackElo "2495"]
[TimeControl "180+1"]
[EndTime "9:26:09 PDT"]
[Termination "SaiAgni_98 won on time"]

1. Nf3 {[%clk 0:02:57.8]} 1... Nf6 {[%clk 0:02:56.8]} 2. d4 {[%clk 0:02:57.1]}
2... d5 {[%clk 0:02:51.6]} 3. c4 {[%clk 0:02:56.9]} 3... c6 {[%clk 0:02:51.4]}
4. e3 {[%clk 0:02:56.1]} 4... e6 {[%clk 0:02:47.3]} 5. Nbd2 {[%clk 0:02:55]}
5... Nbd7 {[%clk 0:02:45.7]} 6. Bd3 {[%clk 0:02:55]} 6... Bd6 {[%clk 0:02:40.9]}
7. O-O {[%clk 0:02:54.9]} 7... O-O {[%clk 0:02:39.5]} 8. e4 {[%clk 0:02:55.1]}
8... dxe4 {[%clk 0:02:39]} 9. Nxe4 {[%clk 0:02:56]} 9... Nxe4 {[%clk 0:02:39.1]}
10. Bxe4 {[%clk 0:02:56.9]} 10... Nf6 {[%clk 0:02:39.3]} 11. Bc2 {[%clk
0:02:52.6]} 11... h6 {[%clk 0:02:35.4]} 12. Qe2 {[%clk 0:02:46.1]} 12... b6
{[%clk 0:02:30.7]} 13. b3 {[%clk 0:02:40.8]} 13... Bb7 {[%clk 0:02:30.2]} 14.
Bb2 {[%clk 0:02:40.9]} 14... Qe7 {[%clk 0:02:24.4]} 15. Rad1 {[%clk 0:02:36.6]}
15... Rad8 {[%clk 0:02:23.5]} 16. Rfe1 {[%clk 0:02:32.5]} 16... Bb4 {[%clk
0:02:22.7]} 17. Rf1 {[%clk 0:02:25.2]} 17... Rfe8 {[%clk 0:02:20.8]} 18. Ne5
{[%clk 0:02:24.1]} 18... Bd6 {[%clk 0:02:17.7]} 19. f4 {[%clk 0:02:12.7]} 19...
c5 {[%clk 0:02:15.4]} 20. dxc5 {[%clk 0:02:02.9]} 20... Bxc5+ {[%clk 0:02:16]}
21. Kh1 {[%clk 0:02:03.3]} 21... Rxd1 {[%clk 0:02:10.8]} 22. Rxd1 {[%clk
0:02:02.6]} 22... Rd8 {[%clk 0:02:11.3]} 23. Rxd8+ {[%clk 0:01:51.6]} 23... Qxd8
{[%clk 0:02:12.1]} 24. h3 {[%clk 0:01:48.6]} 24... Qd6 {[%clk 0:02:03.7]} 25.
Kh2 {[%clk 0:01:45.2]} 25... Bd4 {[%clk 0:01:54.1]} 26. Bc1 {[%clk 0:01:25.5]}
26... Qc5 {[%clk 0:01:51.7]} 27. Nd3 {[%clk 0:01:06.8]} 27... Qd6 {[%clk
0:01:29.3]} 28. b4 {[%clk 0:00:52.7]} 28... g6 {[%clk 0:01:20.3]} 29. a3 {[%clk
0:00:51.8]} 29... Kg7 {[%clk 0:01:16]} 30. Ne5 {[%clk 0:00:49.7]} 30... h5
{[%clk 0:01:04.7]} 31. Nf3 {[%clk 0:00:45.6]} 31... a5 {[%clk 0:00:58.9]} 32.
Nxd4 {[%clk 0:00:37.3]} 32... Qxd4 {[%clk 0:00:58.1]} 33. Be3 {[%clk 0:00:35.9]}
33... Qd6 {[%clk 0:00:40.9]} 34. c5 {[%clk 0:00:30.2]} 34... bxc5 {[%clk
0:00:40.4]} 35. bxc5 {[%clk 0:00:30.3]} 35... Qd5 {[%clk 0:00:38]} 36. Qd2
{[%clk 0:00:27]} 36... Bc6 {[%clk 0:00:15.4]} 37. Qxd5 {[%clk 0:00:22.7]} 37...
Nxd5 {[%clk 0:00:16.3]} 38. Bd2 {[%clk 0:00:22.8]} 38... a4 {[%clk 0:00:16.3]}
39. Kg3 {[%clk 0:00:18.1]} 39... Kf8 {[%clk 0:00:15.5]} 40. Kf2 {[%clk
0:00:16.9]} 40... Ke7 {[%clk 0:00:15.4]} 41. g4 {[%clk 0:00:17.1]} 41... hxg4
{[%clk 0:00:15.2]} 42. hxg4 {[%clk 0:00:18]} 42... f5 {[%clk 0:00:15.6]} 43. g5
{[%clk 0:00:14.4]} 43... Kd7 {[%clk 0:00:15.7]} 44. Bd3 {[%clk 0:00:12.8]} 44...
Nc7 {[%clk 0:00:14.9]} 45. Bc4 {[%clk 0:00:10.8]} 45... Bd5 {[%clk 0:00:14.5]}
46. Bd3 {[%clk 0:00:10.2]} 46... Bb3 {[%clk 0:00:14.4]} 47. Bc3 {[%clk
0:00:09.3]} 47... Kc6 {[%clk 0:00:14.5]} 48. Bd4 {[%clk 0:00:07]} 48... Nd5
{[%clk 0:00:11.6]} 49. Kf3 {[%clk 0:00:04.5]} 49... Bd1+ {[%clk 0:00:11.3]} 50.
Kg3 {[%clk 0:00:04.6]} 50... Nc7 {[%clk 0:00:10.3]} 51. Bc4 {[%clk 0:00:03.9]}
51... Bb3 {[%clk 0:00:08.2]} 52. Bd3 {[%clk 0:00:02.5]} 52... Nb5 {[%clk
0:00:07.6]} 0-1

[Event "Early-Titled-Tuesday-Blitz-March-26-2024"]
[Site "Chess.com"]
[Date "2024.03.26"]
[Round "8"]
[White "Gurvich_Vitaly"]
[Black "Chessmissile07"]
[Result "1-0"]
[WhiteElo "2732"]
[BlackElo "2902"]
[TimeControl "180+1"]
[EndTime "9:26:10 PDT"]
[Termination "Gurvich_Vitaly won by checkmate"]

1. e4 {[%clk 0:02:54.1]} 1... a6 {[%clk 0:03:00.9]} 2. d4 {[%clk 0:02:53.1]}
2... e6 {[%clk 0:02:57.7]} 3. Bd3 {[%clk 0:02:52.8]} 3... d5 {[%clk 0:02:57.7]}
4. Nd2 {[%clk 0:02:51.4]} 4... c5 {[%clk 0:02:52]} 5. dxc5 {[%clk 0:02:47.7]}
5... Bxc5 {[%clk 0:02:52.9]} 6. Ngf3 {[%clk 0:02:47.9]} 6... Nc6 {[%clk
0:02:52.4]} 7. Qe2 {[%clk 0:02:47.5]} 7... Nge7 {[%clk 0:02:50.4]} 8. a3 {[%clk
0:02:47.2]} 8... O-O {[%clk 0:02:41.3]} 9. O-O {[%clk 0:02:44.5]} 9... Ng6
{[%clk 0:02:39.7]} 10. Nb3 {[%clk 0:02:43.6]} 10... Bd6 {[%clk 0:02:40]} 11. Rd1
{[%clk 0:02:41.7]} 11... Nf4 {[%clk 0:02:27.7]} 12. Bxf4 {[%clk 0:02:39.9]}
12... Bxf4 {[%clk 0:02:28.6]} 13. exd5 {[%clk 0:02:31.5]} 13... exd5 {[%clk
0:02:29.5]} 14. c4 {[%clk 0:02:31.9]} 14... Bg4 {[%clk 0:02:07]} 15. cxd5 {[%clk
0:02:23.2]} 15... Re8 {[%clk 0:01:38.1]} 16. Bxh7+ {[%clk 0:01:50.4]} 16... Kh8
{[%clk 0:01:25.6]} 17. Qd3 {[%clk 0:01:08.4]} 17... Ne5 {[%clk 0:01:09.6]} 18.
Nxe5 {[%clk 0:00:53.7]} 18... Rxe5 {[%clk 0:01:08.2]} 19. Be4 {[%clk 0:00:52.7]}
19... Bxd1 {[%clk 0:00:51.6]} 20. Rxd1 {[%clk 0:00:52]} 20... Bxh2+ {[%clk
0:00:36.8]} 21. Kf1 {[%clk 0:00:49.3]} 21... Qh4 {[%clk 0:00:34.1]} 22. Bf3
{[%clk 0:00:47.2]} 22... Rd8 {[%clk 0:00:17.3]} 23. g3 {[%clk 0:00:37.6]} 23...
Qh3+ {[%clk 0:00:10.3]} 24. Bg2 {[%clk 0:00:37.6]} 24... Rexd5 {[%clk
0:00:09.7]} 25. Qxd5 {[%clk 0:00:28.4]} 25... Rxd5 {[%clk 0:00:10.6]} 26. Rxd5
{[%clk 0:00:28.7]} 26... Qe6 {[%clk 0:00:08.4]} 27. Nd4 {[%clk 0:00:24.4]} 27...
Qg6 {[%clk 0:00:04.8]} 28. Bf3 {[%clk 0:00:20.4]} 28... Qb1+ {[%clk 0:00:04.2]}
29. Kg2 {[%clk 0:00:20.1]} 29... Bg1 {[%clk 0:00:04.3]} 30. Ne2 {[%clk
0:00:14.3]} 30... Bxf2 {[%clk 0:00:04.5]} 31. Kxf2 {[%clk 0:00:14.1]} 31... Qxb2
{[%clk 0:00:05]} 32. Rd7 {[%clk 0:00:12.2]} 32... b5 {[%clk 0:00:04.3]} 33. Rxf7
{[%clk 0:00:09.5]} 33... Qxa3 {[%clk 0:00:04.7]} 34. Rb7 {[%clk 0:00:05.9]}
34... Qc5+ {[%clk 0:00:04.8]} 35. Kg2 {[%clk 0:00:05.9]} 35... Qc4 {[%clk
0:00:05.2]} 36. Nf4 {[%clk 0:00:06]} 36... Qc2+ {[%clk 0:00:05.1]} 37. Kh3
{[%clk 0:00:06.3]} 37... Qf5+ {[%clk 0:00:05.3]} 38. Bg4 {[%clk 0:00:04.1]}
38... Qb1 {[%clk 0:00:05.6]} 39. Rb8+ {[%clk 0:00:02.6]} 39... Kh7 {[%clk
0:00:05.9]} 40. Bh5 {[%clk 0:00:02.5]} 40... Qh1+ {[%clk 0:00:05.7]} 41. Kg4
{[%clk 0:00:02.9]} 41... Qd1+ {[%clk 0:00:06.2]} 42. Kh4 {[%clk 0:00:03]} 42...
Qh1+ {[%clk 0:00:05]} 43. Kg5 {[%clk 0:00:02.7]} 43... g6 {[%clk 0:00:03.8]} 44.
Bxg6+ {[%clk 0:00:03]} 44... Kg7 {[%clk 0:00:03.9]} 45. Rc8 {[%clk 0:00:02.3]}
45... Qc1 {[%clk 0:00:03.3]} 46. Rxc1 {[%clk 0:00:01.4]} 46... Kf8 {[%clk
0:00:03.3]} 47. Rd1 {[%clk 0:00:02.3]} 47... Ke7 {[%clk 0:00:04.2]} 48. Re1+
{[%clk 0:00:02.5]} 48... Kd6 {[%clk 0:00:04.5]} 49. g4 {[%clk 0:00:03.4]} 49...
Kc5 {[%clk 0:00:05.4]} 50. Nd3+ {[%clk 0:00:04.2]} 50... Kc4 {[%clk 0:00:05.8]}
51. Ne5+ {[%clk 0:00:05.1]} 51... Kb3 {[%clk 0:00:06.7]} 52. Bf7+ {[%clk
0:00:05.5]} 52... Ka3 {[%clk 0:00:07.6]} 53. Nc6 {[%clk 0:00:05.5]} 53... a5
{[%clk 0:00:08.5]} 54. Nxa5 {[%clk 0:00:05.6]} 54... b4 {[%clk 0:00:09.4]} 55.
Nc6 {[%clk 0:00:05.9]} 55... Ka4 {[%clk 0:00:10.3]} 56. Bb3+ {[%clk 0:00:05.8]}
56... Kxb3 {[%clk 0:00:10.6]} 57. Nxb4 {[%clk 0:00:06.7]} 57... Kxb4 {[%clk
0:00:10.9]} 58. Kf6 {[%clk 0:00:07.6]} 58... Kc3 {[%clk 0:00:11.8]} 59. Rh1
{[%clk 0:00:08.5]} 59... Kd2 {[%clk 0:00:12.7]} 60. g5 {[%clk 0:00:09.4]} 60...
Ke3 {[%clk 0:00:13.5]} 61. g6 {[%clk 0:00:10.3]} 61... Kf4 {[%clk 0:00:14.4]}
62. Rh7 {[%clk 0:00:10.7]} 62... Ke4 {[%clk 0:00:15.3]} 63. g7 {[%clk
0:00:11.6]} 63... Kf3 {[%clk 0:00:16.2]} 64. g8=Q {[%clk 0:00:12.2]} 64... Kf2
{[%clk 0:00:17.1]} 65. Qb8 {[%clk 0:00:11.7]} 65... Ke3 {[%clk 0:00:17.6]} 66.
Rc7 {[%clk 0:00:12.4]} 66... Ke4 {[%clk 0:00:18.5]} 67. Qb5 {[%clk 0:00:12.3]}
67... Kd4 {[%clk 0:00:18.9]} 68. Rc4+ {[%clk 0:00:12.3]} 68... Ke3 {[%clk
0:00:19.8]} 69. Qb3+ {[%clk 0:00:12.6]} 69... Kd2 {[%clk 0:00:20.7]} 70. Rc2+
{[%clk 0:00:12.8]} 70... Kd1 {[%clk 0:00:21.6]} 71. Qb1# {[%clk 0:00:13]} 1-0

[Event "Early-Titled-Tuesday-Blitz-March-26-2024"]
[Site "Chess.com"]
[Date "2024.03.26"]
[Round "8"]
[White "Binary010"]
[Black "RebelJohnny"]
[Result "0-1"]
[WhiteElo "2783"]
[BlackElo "2585"]
[TimeControl "180+1"]
[EndTime "9:26:11 PDT"]
[Termination "RebelJohnny won by resignation"]

1. e4 {[%clk 0:03:00.9]} 1... c5 {[%clk 0:02:59.6]} 2. Nf3 {[%clk 0:03:00.7]}
2... d6 {[%clk 0:02:59.8]} 3. d4 {[%clk 0:03:01]} 3... cxd4 {[%clk 0:03:00.7]}
4. Nxd4 {[%clk 0:03:01.9]} 4... Nf6 {[%clk 0:03:01.3]} 5. Nc3 {[%clk 0:03:02.6]}
5... a6 {[%clk 0:03:01.9]} 6. Rg1 {[%clk 0:03:03]} 6... e5 {[%clk 0:02:48]} 7.
Nb3 {[%clk 0:03:02.6]} 7... Be6 {[%clk 0:02:48.7]} 8. g4 {[%clk 0:03:02.7]} 8...
d5 {[%clk 0:02:49.4]} 9. exd5 {[%clk 0:03:02.6]} 9... Nxd5 {[%clk 0:02:49.6]}
10. Nxd5 {[%clk 0:03:02.9]} 10... Qxd5 {[%clk 0:02:50.5]} 11. Qxd5 {[%clk
0:03:03.3]} 11... Bxd5 {[%clk 0:02:51.4]} 12. Be3 {[%clk 0:03:03.3]} 12... Nc6
{[%clk 0:02:52.1]} 13. O-O-O {[%clk 0:03:03.3]} 13... O-O-O {[%clk 0:02:49.2]}
14. Bb6 {[%clk 0:03:03.3]} 14... Rd6 {[%clk 0:02:47.2]} 15. g5 {[%clk 0:02:42]}
15... Be7 {[%clk 0:02:46.2]} 16. h4 {[%clk 0:02:36.1]} 16... Be6 {[%clk
0:02:25.9]} 17. Rxd6 {[%clk 0:02:31.1]} 17... Bxd6 {[%clk 0:02:26.8]} 18. Bd3
{[%clk 0:02:25.1]} 18... Nb4 {[%clk 0:01:44.8]} 19. Be4 {[%clk 0:02:14.2]} 19...
Nxa2+ {[%clk 0:01:24.6]} 20. Kb1 {[%clk 0:02:14.4]} 20... Nb4 {[%clk 0:01:25.3]}
21. Rd1 {[%clk 0:01:54.6]} 21... Bc7 {[%clk 0:01:13.7]} 22. Bxc7 {[%clk
0:01:50.7]} 22... Kxc7 {[%clk 0:01:14.6]} 23. Nc5 {[%clk 0:01:40.2]} 23... Bc8
{[%clk 0:01:10.7]} 24. c3 {[%clk 0:01:36.9]} 24... Nc6 {[%clk 0:01:07.7]} 25.
Kc2 {[%clk 0:01:20.7]} 25... h6 {[%clk 0:00:56.9]} 26. g6 {[%clk 0:01:13.1]}
26... f5 {[%clk 0:00:44.3]} 27. Bd5 {[%clk 0:01:07.1]} 27... Rd8 {[%clk
0:00:28.2]} 28. Be6 {[%clk 0:00:50]} 28... Rxd1 {[%clk 0:00:25.6]} 29. Kxd1
{[%clk 0:00:50.9]} 29... Ne7 {[%clk 0:00:18]} 30. Bxc8 {[%clk 0:00:43.1]} 30...
Kxc8 {[%clk 0:00:18.9]} 31. h5 {[%clk 0:00:41.1]} 31... f4 {[%clk 0:00:12.5]}
32. Ke2 {[%clk 0:00:38.8]} 32... b6 {[%clk 0:00:08.6]} 33. Nxa6 {[%clk
0:00:26.8]} 33... Nd5 {[%clk 0:00:08.8]} 34. Kf3 {[%clk 0:00:20.9]} 34... Nf6
{[%clk 0:00:09.4]} 35. Nb4 {[%clk 0:00:18.6]} 35... Kd7 {[%clk 0:00:10]} 36. c4
{[%clk 0:00:16.4]} 36... Ke6 {[%clk 0:00:10.3]} 37. Nc6 {[%clk 0:00:11]} 37...
Nxh5 {[%clk 0:00:07.6]} 38. b4 {[%clk 0:00:11.7]} 38... Nf6 {[%clk 0:00:06.4]}
39. Na7 {[%clk 0:00:06.2]} 39... Kf5 {[%clk 0:00:06.3]} 40. c5 {[%clk
0:00:06.6]} 40... e4+ {[%clk 0:00:07.2]} 41. Ke2 {[%clk 0:00:06.4]} 41... bxc5
{[%clk 0:00:07.8]} 42. bxc5 {[%clk 0:00:06.2]} 42... Nd5 {[%clk 0:00:07.4]} 43.
c6 {[%clk 0:00:06.3]} 43... Ke5 {[%clk 0:00:07.3]} 44. Nb5 {[%clk 0:00:06.3]}
44... Ke6 {[%clk 0:00:03.5]} 45. Nd4+ {[%clk 0:00:05.7]} 45... Kd6 {[%clk
0:00:03.7]} 46. Nf5+ {[%clk 0:00:05.4]} 46... Kxc6 {[%clk 0:00:04.2]} 47. Nxg7
{[%clk 0:00:06.2]} 47... Ne7 {[%clk 0:00:03.3]} 48. f3 {[%clk 0:00:03.2]} 48...
e3 {[%clk 0:00:03.4]} 49. Kd3 {[%clk 0:00:03.1]} 49... Nxg6 {[%clk 0:00:04]} 50.
Nf5 {[%clk 0:00:02.2]} 50... Kd5 {[%clk 0:00:04.1]} 51. Nxh6 {[%clk 0:00:02.4]}
51... Ne5+ {[%clk 0:00:04.5]} 52. Ke2 {[%clk 0:00:02.9]} 52... Nc6 {[%clk
0:00:03.7]} 53. Nf5 {[%clk 0:00:03.2]} 53... Nd4+ {[%clk 0:00:04.3]} 54. Nxd4
{[%clk 0:00:01.7]} 54... Kxd4 {[%clk 0:00:05.2]} 55. Ke1 {[%clk 0:00:02.4]}
55... Kc3 {[%clk 0:00:04.2]} 56. Ke2 {[%clk 0:00:02.5]} 56... Kc2 {[%clk
0:00:04.3]} 57. Ke1 {[%clk 0:00:03.1]} 57... Kd3 {[%clk 0:00:04.3]} 58. Kd1
{[%clk 0:00:02.2]} 58... Kd4 {[%clk 0:00:05.2]} 59. Ke2 {[%clk 0:00:02.1]} 59...
Ke5 {[%clk 0:00:06.1]} 60. Ke1 {[%clk 0:00:02.5]} 60... Kf5 {[%clk 0:00:07]} 61.
Ke2 {[%clk 0:00:02.8]} 61... Kg5 {[%clk 0:00:07.9]} 62. Kf1 {[%clk 0:00:03.2]}
62... Kh4 {[%clk 0:00:08.8]} 63. Kg2 {[%clk 0:00:03.6]} 63... e2 {[%clk
0:00:08.8]} 64. Kf2 {[%clk 0:00:04]} 64... Kh3 {[%clk 0:00:08.9]} 65. Kxe2
{[%clk 0:00:04.2]} 65... Kg2 {[%clk 0:00:09.6]} 0-1

[Event "Early-Titled-Tuesday-Blitz-March-26-2024"]
[Site "Chess.com"]
[Date "2024.03.26"]
[Round "8"]
[White "jcibarra"]
[Black "crescentmoon2411"]
[Result "1-0"]
[WhiteElo "3011"]
[BlackElo "2888"]
[TimeControl "180+1"]
[EndTime "9:26:13 PDT"]
[Termination "jcibarra won by resignation"]

1. e4 {[%clk 0:02:54.1]} 1... c5 {[%clk 0:02:59.6]} 2. Nf3 {[%clk 0:02:53.8]}
2... Nc6 {[%clk 0:03:00.2]} 3. Nc3 {[%clk 0:02:51.9]} 3... g6 {[%clk 0:02:56.8]}
4. d4 {[%clk 0:02:52.3]} 4... cxd4 {[%clk 0:02:57.7]} 5. Nxd4 {[%clk 0:02:52.8]}
5... Bg7 {[%clk 0:02:58.4]} 6. Be3 {[%clk 0:02:53.2]} 6... Nf6 {[%clk
0:02:57.4]} 7. Bc4 {[%clk 0:02:53.7]} 7... O-O {[%clk 0:02:56.6]} 8. Bb3 {[%clk
0:02:53]} 8... a5 {[%clk 0:02:56.2]} 9. O-O {[%clk 0:02:52.3]} 9... a4 {[%clk
0:02:55.8]} 10. Nxa4 {[%clk 0:02:52.4]} 10... Nxe4 {[%clk 0:02:55.7]} 11. Nb5
{[%clk 0:02:52.6]} 11... d6 {[%clk 0:02:54.3]} 12. Qe2 {[%clk 0:02:49.4]} 12...
Nf6 {[%clk 0:02:48.8]} 13. c4 {[%clk 0:02:47.8]} 13... Bg4 {[%clk 0:02:47.6]}
14. f3 {[%clk 0:02:47.3]} 14... Be6 {[%clk 0:02:47.1]} 15. Rad1 {[%clk
0:02:44.1]} 15... Na5 {[%clk 0:02:42.2]} 16. Bb6 {[%clk 0:02:30.3]} 16... Qc8
{[%clk 0:02:33.5]} 17. Nc7 {[%clk 0:02:17]} 17... Nxb3 {[%clk 0:02:21.1]} 18.
axb3 {[%clk 0:02:09.7]} 18... Rb8 {[%clk 0:02:17.9]} 19. Rfe1 {[%clk 0:02:04]}
19... Bd7 {[%clk 0:02:14.7]} 20. Qxe7 {[%clk 0:01:55.6]} 20... Bxa4 {[%clk
0:02:13.6]} 21. bxa4 {[%clk 0:01:55.5]} 21... Nd7 {[%clk 0:02:12.3]} 22. Qxd6
{[%clk 0:01:50.2]} 22... Nxb6 {[%clk 0:02:10.5]} 23. Qxb6 {[%clk 0:01:49]} 23...
Bxb2 {[%clk 0:02:10.7]} 24. Nd5 {[%clk 0:01:46.5]} 24... Ba3 {[%clk 0:02:10.9]}
25. Nf6+ {[%clk 0:01:32.5]} 25... Kg7 {[%clk 0:02:10.6]} 26. Nd7 {[%clk
0:01:32.2]} 26... Qxc4 {[%clk 0:02:10.3]} 27. Qf6+ {[%clk 0:01:22]} 27... Kg8
{[%clk 0:02:09]} 28. Nxb8 {[%clk 0:01:19.8]} 28... Rxb8 {[%clk 0:02:08.2]} 29.
Re4 {[%clk 0:01:02.9]} 29... Qc2 {[%clk 0:02:01.6]} 30. Rde1 {[%clk 0:00:57.8]}
30... Bf8 {[%clk 0:01:55.2]} 31. h4 {[%clk 0:00:56.6]} 31... h5 {[%clk
0:01:49.9]} 32. Re8 {[%clk 0:00:42.1]} 32... Rxe8 {[%clk 0:01:48.1]} 33. Rxe8
{[%clk 0:00:43]} 33... Qxa4 {[%clk 0:01:46.6]} 34. Qe7 {[%clk 0:00:37.2]} 34...
Qa1+ {[%clk 0:01:42.9]} 35. Kh2 {[%clk 0:00:37.2]} 35... Qg7 {[%clk 0:01:43.6]}
36. Rb8 {[%clk 0:00:26.1]} 36... b5 {[%clk 0:01:40.2]} 37. f4 {[%clk 0:00:25]}
37... Qh6 {[%clk 0:01:32.5]} 38. Kg3 {[%clk 0:00:23.1]} 38... Qg7 {[%clk
0:01:27.3]} 39. Kh2 {[%clk 0:00:23]} 39... Qh6 {[%clk 0:01:27.6]} 40. Qg5 {[%clk
0:00:15.2]} 40... Qxg5 {[%clk 0:01:24.7]} 41. hxg5 {[%clk 0:00:15.3]} 41... b4
{[%clk 0:01:25.6]} 42. Kg3 {[%clk 0:00:14.6]} 42... Kg7 {[%clk 0:01:26]} 43. Kf3
{[%clk 0:00:15.2]} 43... Bd6 {[%clk 0:01:25]} 44. Rb7 {[%clk 0:00:15.2]} 44...
Kg8 {[%clk 0:01:23.5]} 45. g3 {[%clk 0:00:15.3]} 45... Kg7 {[%clk 0:01:23]} 46.
Ke4 {[%clk 0:00:15.1]} 46... Bc5 {[%clk 0:00:58.9]} 47. Kf3 {[%clk 0:00:14.9]}
47... Kg8 {[%clk 0:00:58.1]} 48. g4 {[%clk 0:00:15.2]} 48... hxg4+ {[%clk
0:00:56.4]} 49. Kxg4 {[%clk 0:00:16.1]} 49... Kg7 {[%clk 0:00:54.2]} 50. Kf3
{[%clk 0:00:16.6]} 50... Bd6 {[%clk 0:00:53.9]} 51. Ke4 {[%clk 0:00:17]} 51...
Bc5 {[%clk 0:00:51.3]} 52. Kd5 {[%clk 0:00:17]} 52... Bf8 {[%clk 0:00:24.9]} 53.
Kc6 {[%clk 0:00:17]} 53... Kg8 {[%clk 0:00:21.1]} 54. Rb5 {[%clk 0:00:08.8]}
54... f6 {[%clk 0:00:19.1]} 55. Rb7 {[%clk 0:00:05.2]} 55... fxg5 {[%clk
0:00:18.7]} 56. fxg5 {[%clk 0:00:06.1]} 56... b3 {[%clk 0:00:15.7]} 57. Kd5
{[%clk 0:00:05.9]} 57... b2 {[%clk 0:00:14.9]} 58. Rxb2 {[%clk 0:00:05.2]} 58...
Be7 {[%clk 0:00:15.1]} 59. Rb8+ {[%clk 0:00:04.7]} 59... Kf7 {[%clk 0:00:13.9]}
60. Rb7 {[%clk 0:00:05.2]} 60... Kf8 {[%clk 0:00:12.5]} 61. Rxe7 {[%clk
0:00:05.5]} 61... Kxe7 {[%clk 0:00:13.4]} 62. Ke5 {[%clk 0:00:06.1]} 62... Kf7
{[%clk 0:00:13.3]} 63. Kd6 {[%clk 0:00:06.4]} 63... Kf8 {[%clk 0:00:11.9]} 64.
Ke6 {[%clk 0:00:05.8]} 1-0

[Event "Early-Titled-Tuesday-Blitz-March-26-2024"]
[Site "Chess.com"]
[Date "2024.03.26"]
[Round "8"]
[White "Slovineanu"]
[Black "nekotyanof"]
[Result "1-0"]
[WhiteElo "2543"]
[BlackElo "2675"]
[TimeControl "180+1"]
[EndTime "9:26:13 PDT"]
[Termination "Slovineanu won by resignation"]

1. d4 {[%clk 0:03:00.9]} 1... Nf6 {[%clk 0:03:00]} 2. Nf3 {[%clk 0:03:00.4]}
2... g6 {[%clk 0:03:00.5]} 3. Nbd2 {[%clk 0:03:00.2]} 3... d5 {[%clk 0:03:00.5]}
4. e3 {[%clk 0:03:00.6]} 4... Bg7 {[%clk 0:03:01.1]} 5. b4 {[%clk 0:03:00.9]}
5... a5 {[%clk 0:03:01.7]} 6. b5 {[%clk 0:03:00.8]} 6... c5 {[%clk 0:03:02.4]}
7. dxc5 {[%clk 0:02:58.1]} 7... Ne4 {[%clk 0:03:01.8]} 8. Ba3 {[%clk 0:02:57.9]}
8... O-O {[%clk 0:02:56.6]} 9. c4 {[%clk 0:02:57.5]} 9... Bc3 {[%clk 0:02:47.8]}
10. Rc1 {[%clk 0:02:51.5]} 10... Bg4 {[%clk 0:02:45.4]} 11. Rxc3 {[%clk
0:02:45.4]} 11... Nxc3 {[%clk 0:02:46.3]} 12. Qb3 {[%clk 0:02:45.4]} 12... Ne4
{[%clk 0:02:37.2]} 13. cxd5 {[%clk 0:02:45.3]} 13... Bxf3 {[%clk 0:02:34.1]} 14.
Nxf3 {[%clk 0:02:41.3]} 14... Nd7 {[%clk 0:02:34.4]} 15. c6 {[%clk 0:02:38.4]}
15... bxc6 {[%clk 0:02:34.1]} 16. dxc6 {[%clk 0:02:36.1]} 16... Ndc5 {[%clk
0:02:33.8]} 17. Qc4 {[%clk 0:02:25.5]} 17... Qd6 {[%clk 0:02:30.3]} 18. Be2
{[%clk 0:02:23]} 18... Qe6 {[%clk 0:01:47.6]} 19. O-O {[%clk 0:02:07.6]} 19...
Qxc4 {[%clk 0:01:44.1]} 20. Bxc4 {[%clk 0:02:07.7]} 20... Rfd8 {[%clk
0:01:41.8]} 21. b6 {[%clk 0:01:54.6]} 21... Rac8 {[%clk 0:01:37.8]} 22. c7
{[%clk 0:01:47]} 22... Rd6 {[%clk 0:01:37]} 23. Rb1 {[%clk 0:01:45]} 23... Rf6
{[%clk 0:00:29]} 24. h4 {[%clk 0:01:34.5]} 24... Nd7 {[%clk 0:00:25.9]} 25. Ba6
{[%clk 0:01:25.5]} 25... Rxb6 {[%clk 0:00:24.2]} 26. Rxb6 {[%clk 0:01:07.6]}
26... Nxb6 {[%clk 0:00:25.1]} 27. Bxc8 {[%clk 0:01:07.6]} 27... Nxc8 {[%clk
0:00:26]} 28. Nd4 {[%clk 0:01:01.8]} 28... Nc3 {[%clk 0:00:26.1]} 29. Nc6 {[%clk
0:00:59]} 29... Nd5 {[%clk 0:00:26.5]} 30. Nxa5 {[%clk 0:00:56.4]} 30... Nxc7
{[%clk 0:00:26.5]} 31. Nc6 {[%clk 0:00:54.2]} 31... e6 {[%clk 0:00:26.4]} 32.
Ne7+ {[%clk 0:00:54]} 32... Nxe7 {[%clk 0:00:27.1]} 33. Bxe7 {[%clk 0:00:54.6]}
33... Nd5 {[%clk 0:00:28]} 34. Bc5 {[%clk 0:00:54.4]} 34... Nc3 {[%clk
0:00:27.4]} 35. a3 {[%clk 0:00:51.1]} 35... f6 {[%clk 0:00:27.8]} 36. Bb4 {[%clk
0:00:46.9]} 36... Na4 {[%clk 0:00:24.6]} 37. e4 {[%clk 0:00:45.3]} 37... Kf7
{[%clk 0:00:24.7]} 38. f3 {[%clk 0:00:45.1]} 38... f5 {[%clk 0:00:25.3]} 39. Kf2
{[%clk 0:00:45.3]} 39... e5 {[%clk 0:00:24.6]} 40. Ke3 {[%clk 0:00:42.5]} 40...
Ke6 {[%clk 0:00:24.1]} 41. Kd3 {[%clk 0:00:42.8]} 41... h6 {[%clk 0:00:19.4]}
42. Kc4 {[%clk 0:00:41.8]} 42... g5 {[%clk 0:00:18.7]} 43. h5 {[%clk 0:00:41.5]}
43... g4 {[%clk 0:00:16.9]} 44. fxg4 {[%clk 0:00:38.3]} 44... fxe4 {[%clk
0:00:16.7]} 45. Bf8 {[%clk 0:00:34.5]} 45... Nb6+ {[%clk 0:00:13.5]} 46. Kb3
{[%clk 0:00:33.2]} 46... e3 {[%clk 0:00:07.2]} 47. Kc2 {[%clk 0:00:33.4]} 47...
Kd5 {[%clk 0:00:05.3]} 48. Kd3 {[%clk 0:00:30.1]} 48... Nc4 {[%clk 0:00:04.8]}
49. a4 {[%clk 0:00:29.8]} 49... e4+ {[%clk 0:00:05.3]} 50. Ke2 {[%clk
0:00:30.1]} 50... Ne5 {[%clk 0:00:05.8]} 51. Bxh6 {[%clk 0:00:28.9]} 51... Nxg4
{[%clk 0:00:06.5]} 52. Bxe3 {[%clk 0:00:29.1]} 52... Kc4 {[%clk 0:00:06.5]} 53.
h6 {[%clk 0:00:29]} 53... Nf6 {[%clk 0:00:07]} 54. g4 {[%clk 0:00:26]} 54... Kd5
{[%clk 0:00:04.7]} 55. g5 {[%clk 0:00:26]} 55... Nh7 {[%clk 0:00:01.8]} 56. a5
{[%clk 0:00:25.9]} 56... Nf8 {[%clk 0:00:01.6]} 57. a6 {[%clk 0:00:26]} 57...
Kc6 {[%clk 0:00:02]} 58. Bd4 {[%clk 0:00:24.1]} 58... Kd5 {[%clk 0:00:01.7]} 59.
a7 {[%clk 0:00:22.9]} 59... Kxd4 {[%clk 0:00:02.3]} 60. a8=Q {[%clk 0:00:23.2]}
60... Ne6 {[%clk 0:00:03.2]} 61. Qa4+ {[%clk 0:00:18.8]} 61... Ke5 {[%clk
0:00:03.7]} 62. Qb5+ {[%clk 0:00:18.4]} 62... Kf4 {[%clk 0:00:04.1]} 63. Qb8+
{[%clk 0:00:14]} 63... Kxg5 {[%clk 0:00:03.9]} 64. h7 {[%clk 0:00:14.5]} 64...
Nf4+ {[%clk 0:00:02.7]} 65. Ke3 {[%clk 0:00:14.9]} 65... Ng6 {[%clk 0:00:02.7]}
66. h8=Q {[%clk 0:00:14.3]} 66... Nxh8 {[%clk 0:00:03.3]} 67. Qxh8 {[%clk
0:00:14.5]} 1-0